bitfinex/quotes_ETHUSD_20250604
["timestamp","ask_amount","ask_price","bid_price","bid_amount"]
[1749057049880,5.95577337,2647.4,2647.3,15.915]
[1749057050703,5.95577337,2647.4,2647.3,9.748]
[1749057054304,5.95577337,2647.4,2647.3,8.145]
[1749057054608,5.95577337,2647.4,2647.3,9.748]
[1749057054765,5.95577337,2647.4,2647.3,8.145]
[1749057054964,5.95577337,2647.4,2647.3,9.748]
[1749057055179,4.73123878,2647.2,2647.1,6.167]
[1749057055400,4.73123878,2647.2,2647.1,15.916]
[1749057055785,5.28123878,2647.2,2647.1,9.749]
[1749057058990,12.39466852,2647.2,2647.1,9.749]
[1749057059315,14.53874044,2647.2,2647.1,9.749]
[1749057061814,22.41874044,2647.2,2647.1,9.749]
[1749057066504,14.7553107,2647.2,2647.1,9.749]
[1749057066828,13.16123878,2647.2,2647.1,1.603]
[1749057067010,12.61123878,2647.2,2647.1,1.603]
[1749057067416,12.61123878,2647.2,2647.1,9.751]
[1749057067815,3.43553878,2647.2,2647.1,9.751]
[1749057068038,3.43553878,2647.2,2647.1,15.919]
[1749057069190,3.43553878,2647.2,2647.1,1.603]
[1749057069391,0.55,2647.6,2646.6,30.0]
[1749057070524,0.55,2647.6,2646.8,29.740212]
[1749057070739,3.43553878,2647.7,2646.8,19.740212]
[1749057071248,3.43553878,2647.7,2646.8,19.457416]
[1749057074712,3.76028124,2647.6,2646.8,12.821744]
[1749057074909,3.76028124,2647.6,2646.9,6.167]
[1749057075143,3.76028124,2647.6,2647.0,3.218995]
[1749057075344,3.76028124,2647.6,2647.1,10.0]
[1749057075548,3.76028124,2647.6,2646.9,6.167]
[1749057075766,3.76028124,2647.4,2646.7,26.0]
[1749057075905,3.76028124,2647.4,2646.8,6.167]
[1749057076417,3.76028124,2647.6,2646.8,6.167]
[1749057076615,3.43553878,2647.7,2646.9,22.014361]
[1749057077407,3.43553878,2647.7,2647.0,9.749]
[1749057078113,3.76028124,2647.6,2647.0,9.749]
[1749057078839,3.43553878,2647.5,2647.0,9.749]
[1749057079331,3.43553878,2647.5,2647.2,10.0]
[1749057079528,3.43553878,2647.5,2647.3,6.167]
[1749057081753,3.43553878,2647.5,2647.1,11.013996]
[1749057081923,3.43553878,2647.5,2647.4,6.167]
[1749057083814,3.43553878,2647.5,2647.4,1.603]
[1749057084018,3.76028124,2647.6,2647.4,7.77]
[1749057086257,3.76028124,2647.6,2647.5,8.146]
[1749057087550,5.05648124,2647.6,2647.5,8.146]
[1749057087866,0.02,2647.9,2647.7,16.0]
[1749057088032,0.02,2647.9,2647.8,40.70870338]
[1749057088231,3.76028124,2648.2,2647.8,3.38893052]
[1749057088553,3.76028124,2648.0,2647.9,6.229]
[1749057089221,0.37602812,2648.1,2647.9,6.229]
[1749057089426,3.76028124,2648.2,2647.9,6.229]
[1749057089672,5.14828124,2648.4,2647.9,6.229]
[1749057090203,5.14828124,2648.4,2647.9,7.36313638]
[1749057091201,1.388,2648.4,2647.9,7.36313638]
[1749057091408,1.388,2648.4,2648.0,1.43479414]
[1749057091704,7.1072343,2648.3,2647.9,6.229]
[1749057092885,7.1072343,2648.3,2647.3,5.027171]
[1749057093187,7.1072343,2648.3,2647.5,10.0]
[1749057093405,7.1072343,2648.3,2647.3,5.027171]
[1749057094112,7.1072343,2648.3,2647.4,16.226]
[1749057094323,7.1072343,2648.3,2647.6,10.0]
[1749057095204,7.1072343,2648.3,2647.4,6.226]
[1749057095383,7.1072343,2648.3,2647.5,2.433248]
[1749057095577,7.1072343,2648.3,2647.4,6.226]
[1749057096134,7.1072343,2648.3,2647.4,16.0]
[1749057096286,7.1072343,2648.3,2647.5,6.222]
[1749057097381,2.23752343,2648.4,2647.6,8.145]
[1749057097585,1.388,2648.4,2647.6,9.783]
[1749057099629,1.3472,2648.2,2647.6,9.783]
[1749057099822,1.3472,2648.2,2647.7,6.216]
[1749057103430,3.43553878,2648.3,2647.8,10.0]
[1749057103748,3.43553878,2648.3,2648.0,10.0]
[1749057103904,3.43553878,2648.3,2647.9,8.706584]
[1749057104106,3.43553878,2648.3,2647.9,7.998884]
[1749057104331,3.43553878,2648.3,2647.8,10.0]
[1749057105123,3.43553878,2648.3,2647.9,10.0]
[1749057105507,3.43553878,2648.3,2647.8,10.0]
[1749057106945,3.43553878,2648.3,2647.9,10.0]
[1749057107144,3.43553878,2648.3,2647.9,3.224514]
[1749057107859,3.43553878,2648.3,2647.9,10.0]
[1749057108036,3.43553878,2648.3,2647.8,10.0]
[1749057108350,3.43553878,2648.3,2647.9,7.846]
[1749057109122,3.43553878,2648.3,2648.0,14.079144]
[1749057109646,1.4059,2648.9,2648.2,29.376586]
[1749057109957,1.4059,2648.9,2648.4,10.0]
[1749057110115,1.4059,2648.9,2648.5,7.851]
[1749057110322,1.4059,2648.9,2648.0,1.08537131]
[1749057110624,1.4059,2648.9,2648.1,7.854]
[1749057110625,8.4125343,2648.7,2648.1,7.854]
[1749057110839,7.1072343,2648.4,2648.2,1.638]
[1749057111049,7.6572343,2648.4,2648.3,1.638]
[1749057111357,4.30951784,2648.4,2648.3,1.638]
[1749057111558,5.62271784,2648.4,2648.3,1.638]
[1749057111755,6.5285435,2648.4,2648.3,1.638]
[1749057113358,2.76902566,2648.4,2648.3,1.638]
[1749057113557,2.21902566,2648.4,2648.3,1.638]
[1749057114573,5.65456444,2648.4,2648.3,1.638]
[1749057118253,4.74873878,2648.4,2648.3,1.638]
[1749057118669,1.3132,2648.4,2648.3,1.638]
[1749057119185,1.3132,2648.4,2648.3,7.844]
[1749057122988,1.3021,2648.8,2648.3,7.844]
[1749057123282,0.02,2648.9,2648.5,10.0]
[1749057123585,0.02,2648.9,2648.5,10.55914535]
[1749057123769,0.02,2648.9,2648.8,10.0]
[1749057124086,0.02,2648.9,2648.8,10.804597]
[1749057125341,0.02,2648.9,2648.8,13.06977368]
[1749057125657,1.3379,2649.8,2648.8,9.10165082]
[1749057125962,1.3379,2649.8,2648.9,1.625]
[1749057126550,1.3379,2649.8,2648.9,11.625]
[1749057126781,1.3379,2649.8,2648.9,1.625]
[1749057127579,1.3379,2649.8,2649.0,8.143]
[1749057128640,3.45553878,2649.9,2649.0,10.40796663]
[1749057128867,3.45553878,2649.9,2649.0,8.143]
[1749057129250,3.45553878,2649.9,2649.0,10.40798534]
[1749057129587,3.45553878,2649.9,2649.1,17.584633]
[1749057130094,3.45553878,2649.9,2649.2,21.138374]
[1749057130445,0.02,2649.9,2649.2,30.0]
[1749057130855,0.02,2649.9,2649.4,2.11677]
[1749057131191,0.02,2649.9,2649.5,7.831]
[1749057132193,0.02,2649.9,2649.6,12.438038]
[1749057133692,0.02,2649.9,2649.6,11.424832]
[1749057133884,0.02,2649.9,2649.6,9.91172]
[1749057134083,0.02,2649.9,2649.7,0.41156287]
[1749057134283,0.02,2649.9,2649.6,8.531332]
[1749057134800,0.02,2649.9,2649.6,16.26372997]
[1749057135094,0.02,2649.9,2649.8,10.2288]
[1749057137599,1.38,2650.8,2649.8,10.2288]
[1749057138369,1.38,2650.8,2649.9,7.824]
[1749057139277,3.75235003,2650.7,2649.9,7.824]
[1749057139491,1.38,2650.8,2649.9,7.824]
[1749057139804,1.38,2650.8,2650.0,10.049334]
[1749057139976,1.38,2650.8,2650.0,16.599967]
[1749057140299,1.38,2650.8,2650.1,6.599967]
[1749057140803,1.38,2650.8,2650.1,5.609396]
[1749057140988,3.43553878,2650.7,2650.1,5.609396]
[1749057142194,3.43553878,2650.7,2650.2,10.0]
[1749057142397,3.43553878,2650.7,2650.0,10.0]
[1749057142574,3.43553878,2650.7,2650.1,10.0]
[1749057142776,3.43553878,2650.7,2650.2,8.90477]
[1749057142999,3.43553878,2650.7,2650.0,17.717547]
[1749057144205,3.43553878,2650.7,2650.0,15.304925]
[1749057146005,3.43553878,2650.7,2650.3,10.0]
[1749057146204,3.43553878,2650.7,2650.4,8.137]
[1749057146364,3.43553878,2650.7,2650.5,1.623]
[1749057146565,0.02,2650.9,2650.6,26.81722]
[1749057146789,0.02,2650.9,2650.7,6.191]
[1749057149657,0.02,2650.9,2650.8,43.75235003]
[1749057149773,0.02,2650.9,2650.8,53.19943715]
[1749057150391,3.43553878,2651.5,2650.9,16.0]
[1749057150595,3.43553878,2651.5,2651.0,16.507566]
[1749057150785,3.43553878,2651.5,2651.2,10.0]
[1749057150991,3.43553878,2651.5,2651.1,10.0]
[1749057151202,3.43553878,2651.5,2651.2,10.0]
[1749057151397,3.43553878,2651.5,2651.0,7.817]
[1749057151591,3.43553878,2651.5,2651.2,15.405018]
[1749057151910,3.43553878,2651.5,2651.2,10.986018]
[1749057153627,1.2674,2651.4,2651.3,7.808]
[1749057153793,1.2674,2651.4,2650.6,0.55914535]
[1749057153794,1.2674,2651.4,2650.7,16.0]
[1749057153994,1.2674,2651.2,2650.8,1.618]
[1749057154199,4.70293878,2651.2,2650.9,7.808]
[1749057154403,5.08275003,2651.1,2651.0,9.753]
[1749057154636,5.08275003,2651.1,2651.0,15.945]
[1749057154807,1.3304,2651.1,2651.0,15.945]
[1749057155832,1.3304,2651.1,2651.0,15.947]
[1749057158327,1.3304,2651.1,2651.0,8.135]
[1749057158544,1.80699388,2651.1,2651.0,15.943]
[1749057159398,1.3304,2651.1,2651.0,15.943]
[1749057160623,1.3304,2651.1,2651.0,15.944]
[1749057161869,1.3304,2651.1,2651.0,15.942]
[1749057163023,1.3304,2651.1,2651.0,8.135]
[1749057163347,1.3304,2651.1,2651.0,15.94]
[1749057163561,1.3304,2651.1,2651.0,8.135]
[1749057163835,1.3304,2651.1,2651.0,15.94]
[1749057164335,1.3304,2651.1,2651.0,8.135]
[1749057164541,1.3304,2651.1,2651.0,15.938]
[1749057164741,4.76593878,2651.1,2651.0,15.938]
[1749057165106,4.76593878,2651.1,2651.0,8.135]
[1749057165445,4.76593878,2651.1,2651.0,9.753]
[1749057165644,5.24253266,2651.1,2651.0,15.937]
[1749057166020,5.24253266,2651.1,2651.0,8.135]
[1749057166228,4.76593878,2651.1,2651.0,15.937]
[1749057167251,4.76593878,2651.1,2651.0,1.618]
[1749057167434,4.76593878,2651.1,2651.0,9.753]
[1749057167622,3.43553878,2651.1,2651.0,9.753]
[1749057168246,3.43553878,2651.1,2651.0,15.934]
[1749057170516,5.17190266,2651.1,2651.0,9.753]
[1749057170835,5.17190266,2651.1,2651.0,15.931]
[1749057171751,5.17190266,2651.1,2651.0,15.93]
[1749057172121,5.17190266,2651.1,2651.0,15.932]
[1749057172455,5.17190266,2651.1,2651.0,15.931]
[1749057172949,5.72190266,2651.1,2651.0,15.931]
[1749057173830,5.72190266,2651.1,2651.0,9.753]
[1749057174031,1.2518,2650.6,2649.2,10.0]
[1749057174244,7.09203029,2650.4,2649.3,9.753]
[1749057174556,1.3015,2650.3,2649.4,16.0]
[1749057174723,1.3015,2650.3,2649.3,15.953]
[1749057175252,1.3015,2650.3,2649.4,16.0]
[1749057177559,1.3015,2650.3,2649.5,7.815]
[1749057178919,1.3015,2650.3,2649.5,1.618]
[1749057179262,1.3008,2650.1,2649.6,6.196]
[1749057179864,3.43553878,2650.0,2649.6,6.196]
[1749057181154,3.43553878,2650.0,2649.4,16.0]
[1749057181155,4.99638536,2649.9,2649.7,7.811]
[1749057181451,1.2424,2649.9,2649.8,7.811]
[1749057182625,1.2424,2649.9,2649.4,16.0]
[1749057182954,1.2424,2649.9,2649.8,7.81]
[1749057185320,4.67793878,2649.9,2649.8,7.81]
[1749057185451,4.67793878,2649.9,2649.8,1.618]
[1749057185658,5.56849458,2649.9,2649.8,7.806]
[1749057186658,5.56849458,2649.9,2649.4,16.0]
[1749057186994,9.32247994,2649.9,2649.5,7.804]
[1749057187872,1.3064,2649.8,2649.6,7.804]
[1749057188506,1.3064,2649.8,2649.7,1.618]
[1749057188708,2.24504799,2649.8,2649.7,1.618]
[1749057189799,2.24504799,2649.8,2649.7,7.803]
[1749057191273,5.68058677,2649.8,2649.7,7.803]
[1749057192295,5.68058677,2649.8,2649.2,3.75398536]
[1749057192461,4.74193878,2649.8,2649.2,3.75398536]
[1749057192867,3.43553878,2649.8,2649.6,3.75398536]
[1749057193327,3.43553878,2649.8,2649.7,5.59217842]
[1749057193466,3.43553878,2649.8,2649.7,11.77617842]
[1749057194732,3.43553878,2649.8,2649.7,11.306341]
[1749057196413,3.43553878,2650.4,2649.8,20.332951]
[1749057196612,3.43553878,2650.4,2650.2,3.75398536]
[1749057196771,3.43553878,2650.4,2650.3,6.183]
[1749057197174,0.02,2650.9,2650.3,6.183]
[1749057197484,0.02,2650.9,2650.6,3.75398536]
[1749057198611,0.02,2650.9,2650.8,3.75398536]
[1749057200298,0.02,2650.9,2650.8,46.92919636]
[1749057200613,0.02,2650.9,2650.8,38.72049336]
[1749057200906,4.417e-05,2650.9,2650.8,35.39999436]
[1749057201297,4.417e-05,2650.9,2650.8,33.37804536]
[1749057202008,4.417e-05,2650.9,2650.8,27.08809036]
[1749057202250,4.417e-05,2650.9,2650.8,25.17970636]
[1749057206327,4.417e-05,2650.9,2650.8,31.35970636]
[1749057206522,4.417e-05,2650.9,2650.8,25.17970636]
[1749057206726,4.417e-05,2650.9,2650.8,22.181]
[1749057207519,4.417e-05,2650.9,2650.8,31.933]
[1749057207727,4.417e-05,2650.9,2650.8,35.68698536]
[1749057209690,4.417e-05,2650.9,2650.8,29.50598536]
[1749057209894,4.417e-05,2650.9,2650.8,35.68298536]
[1749057211540,4.417e-05,2650.9,2650.8,35.67998536]
[1749057213811,4.417e-05,2650.9,2650.8,58.92608736]
[1749057213995,4.417e-05,2650.9,2650.8,59.12574778]
[1749057214193,4.417e-05,2650.9,2650.8,51.28549478]
[1749057215640,4.417e-05,2650.9,2650.8,39.31276536]
[1749057215857,4.417e-05,2650.9,2650.8,37.87282536]
[1749057216056,4.417e-05,2650.9,2650.8,35.68998536]
[1749057216260,4.417e-05,2650.9,2650.8,27.89898536]
[1749057216407,4.417e-05,2650.9,2650.8,38.60515736]
[1749057216718,4.417e-05,2650.9,2650.8,22.60515736]
[1749057216916,4.417e-05,2650.9,2650.8,19.67998536]
[1749057217148,4.417e-05,2650.9,2650.8,9.754]
[1749057217446,4.417e-05,2650.9,2650.8,15.926]
[1749057218736,4.417e-05,2650.9,2650.8,15.925]
[1749057220234,4.417e-05,2650.9,2650.8,9.754]
[1749057220545,4.417e-05,2650.9,2650.8,15.915]
[1749057221142,4.417e-05,2650.9,2650.8,15.914]
[1749057221345,0.46759246,2650.9,2650.8,15.914]
[1749057224448,4.417e-05,2650.9,2650.8,15.914]
[1749057226064,4.417e-05,2650.9,2650.8,9.744]
[1749057226250,4.417e-05,2650.9,2650.8,15.909]
[1749057226665,4.417e-05,2650.9,2650.8,1.609]
[1749057227672,4.417e-05,2650.9,2650.8,9.744]
[1749057227850,4.417e-05,2650.9,2650.8,15.909]
[1749057228252,4.417e-05,2650.9,2650.8,8.135]
[1749057228550,0.46759246,2650.9,2650.8,15.909]
[1749057232588,4.417e-05,2650.9,2650.8,15.909]
[1749057232762,4.417e-05,2650.9,2650.8,18.727996]
[1749057233090,4.417e-05,2650.9,2650.8,15.909]
[1749057235472,4.417e-05,2650.9,2650.8,19.542426]
[1749057235868,4.417e-05,2650.9,2650.8,15.909]
[1749057236096,4.417e-05,2650.9,2650.8,15.919]
[1749057236396,4.417e-05,2650.9,2650.8,15.909]
[1749057239392,4.417e-05,2650.9,2650.8,15.919]
[1749057240156,4.417e-05,2650.9,2650.8,15.918]
[1749057241406,4.417e-05,2650.9,2650.8,18.311068]
[1749057241866,4.417e-05,2650.9,2650.8,15.918]
[1749057242968,4.417e-05,2650.9,2650.8,35.10234005]
[1749057243165,4.417e-05,2650.9,2650.8,37.36580768]
[1749057243362,4.71243878,2651.7,2650.9,16.0]
[1749057243578,4.71243878,2651.7,2651.3,3.75398536]
[1749057243792,4.71243878,2651.7,2651.4,7.773]
[1749057247509,4.71243878,2651.7,2651.5,8.133]
[1749057251176,3.43553878,2651.7,2651.5,8.133]
[1749057251380,3.43553878,2651.7,2651.6,1.603]
[1749057252489,3.43553878,2651.7,2651.6,7.766]
[1749057257476,3.43553878,2651.7,2651.6,15.899]
[1749057258003,3.43553878,2651.7,2651.6,8.133]
[1749057258202,3.43553878,2651.7,2651.6,15.899]
[1749057258544,3.43553878,2651.7,2651.6,8.133]
[1749057258753,3.90550266,2651.7,2651.6,15.898]
[1749057261550,3.43553878,2651.7,2651.6,15.898]
[1749057267753,3.43553878,2651.7,2651.6,1.603]
[1749057268762,3.43553878,2651.7,2650.9,3.75398536]
[1749057268955,3.43553878,2651.7,2651.1,10.0]
[1749057269357,3.43553878,2651.7,2651.2,10.0]
[1749057269660,3.43553878,2651.7,2651.0,7.765]
[1749057269833,3.43553878,2651.7,2651.1,16.0]
[1749057272582,1.2829,2651.6,2650.7,10.213127]
[1749057272871,1.2829,2651.6,2651.2,1.603]
[1749057272872,5.03688536,2651.6,2651.2,1.603]
[1749057273021,1.2829,2651.5,2651.3,1.603]
[1749057273364,1.2829,2651.5,2651.4,7.764]
[1749057273560,1.78658854,2651.5,2651.4,7.764]
[1749057273927,1.2829,2651.5,2651.4,7.764]
[1749057277140,4.7229,2651.5,2651.4,7.764]
[1749057277655,4.7229,2651.5,2651.4,15.897]
[1749057282931,1.2829,2651.5,2651.4,15.897]
[1749057283266,1.2829,2651.5,2651.4,9.736]
[1749057283463,5.03688536,2651.5,2651.4,15.897]
[1749057283668,5.03688536,2651.5,2651.4,8.133]
[1749057283973,6.0905739,2651.5,2651.4,9.736]
[1749057297621,3.44,2651.4,2651.2,6.162]
[1749057297801,4.30398536,2651.3,2651.2,6.162]
[1749057298138,5.25704275,2651.3,2651.2,15.899]
[1749057298293,5.25704275,2651.3,2651.2,9.737]
[1749057298499,5.25704275,2651.3,2651.2,15.899]
[1749057300605,6.52164275,2651.3,2651.2,15.899]
[1749057302641,3.44,2651.4,2651.2,7.765]
[1749057303138,3.44,2651.4,2650.3,16.0]
[1749057303139,5.01858536,2651.3,2650.3,16.0]
[1749057303347,5.01858536,2651.3,2650.1,10.39287874]
[1749057303348,3.44,2651.2,2650.5,16.0]
[1749057303505,3.44,2651.2,2650.6,6.161]
[1749057304540,3.44,2651.2,2650.1,0.39287874]
[1749057304541,3.75398536,2650.9,2650.1,0.39287874]
[1749057304714,3.75398536,2650.9,2650.0,0.89491604]
[1749057304715,3.75398536,2650.9,2650.3,16.0]
[1749057305429,3.75398536,2650.9,2650.2,16.0]
[1749057305628,3.75398536,2650.5,2649.5,0.4306843]
[1749057305829,3.75398536,2650.3,2649.5,0.4306843]
[1749057306164,3.75398536,2650.3,2649.6,6.161]
[1749057306701,3.44,2650.4,2649.6,6.161]
[1749057306900,3.44,2650.4,2649.7,16.0]
[1749057307500,3.44,2650.4,2649.8,9.738]
[1749057309126,3.44,2650.4,2649.9,6.161]
[1749057310860,3.44,2650.4,2650.0,7.764]
[1749057311367,1.2895,2650.3,2649.8,8.135]
[1749057311652,3.99,2650.2,2650.1,1.602]
[1749057311948,7.74398536,2650.2,2650.1,7.764]
[1749057314940,8.6473339,2650.2,2650.1,7.764]
[1749057315146,7.74398536,2650.2,2650.1,7.764]
[1749057317038,0.55,2650.1,2649.8,8.135]
[1749057317244,3.75398536,2650.0,2649.9,7.764]
[1749057317848,5.05698536,2650.0,2649.9,7.764]
[1749057318529,3.44,2650.2,2649.9,7.764]
[1749057319162,7.19398536,2650.2,2649.9,7.764]
[1749057320360,7.19398536,2650.2,2650.0,7.764]
[1749057321361,3.44,2650.1,2650.0,7.764]
[1749057321574,4.7597,2650.1,2650.0,1.602]
[1749057321741,4.7597,2650.1,2650.0,7.764]
[1749057321742,5.3097,2650.1,2650.0,7.764]
[1749057325081,4.64303333,2650.1,2650.0,7.764]
[1749057326863,4.64303333,2650.1,2649.8,8.135]
[1749057327068,4.64303333,2650.1,2649.9,7.764]
[1749057327381,2.10333333,2650.0,2649.9,7.764]
[1749057330191,2.10333333,2650.0,2649.8,8.135]
[1749057330401,2.10333333,2650.0,2649.9,7.764]
[1749057331895,2.10333333,2650.0,2649.9,1.602]
[1749057331896,3.44423333,2650.0,2649.9,1.602]
[1749057332094,3.44423333,2650.0,2649.9,7.764]
[1749057332274,0.55,2649.9,2649.8,8.135]
[1749057332472,11.50220405,2649.9,2649.8,9.737]
[1749057332676,0.55,2649.7,2647.8,1.1984548]
[1749057332855,5.64488536,2649.2,2647.6,4.95244016]
[1749057333057,7.74821869,2649.2,2647.4,3.75398536]
[1749057333261,8.52304056,2649.2,2647.4,3.75398536]
[1749057333492,8.52304056,2649.2,2648.7,6.162]
[1749057334092,8.52304056,2649.2,2648.6,6.162]
[1749057334487,8.52304056,2649.2,2647.2,3.75398536]
[1749057334668,8.52304056,2649.2,2648.6,6.162]
[1749057337574,8.52304056,2649.2,2649.1,9.763]
[1749057338074,8.52304056,2649.2,2649.1,8.16]
[1749057338266,8.52304056,2649.2,2649.1,9.763]
[1749057339611,16.40304056,2649.2,2649.1,9.762]
[1749057344976,2.08333333,2649.0,2648.5,6.163]
[1749057345177,4.30398536,2648.7,2648.6,9.744]
[1749057346526,4.30398536,2648.7,2647.6,0.46423174]
[1749057346527,4.30398536,2648.7,2647.5,3.75398536]
[1749057346689,4.30398536,2648.7,2647.6,25.516666]
[1749057347020,4.30398536,2648.7,2647.6,18.670266]
[1749057347221,4.30398536,2648.7,2647.6,13.635481]
[1749057347422,4.30398536,2648.7,2647.7,8.142]
[1749057347600,4.30398536,2648.7,2647.7,9.744]
[1749057347803,4.30398536,2648.7,2647.8,6.164]
[1749057354931,4.30398536,2648.7,2647.9,9.745]
[1749057356134,4.30398536,2648.7,2648.0,6.164]
[1749057356828,2.06333333,2648.6,2648.0,6.164]
[1749057357030,2.06333333,2648.6,2648.1,6.164]
[1749057357211,2.06333333,2648.5,2648.1,6.164]
[1749057357405,2.06333333,2648.5,2648.2,8.143]
[1749057358728,5.81731869,2648.5,2648.2,8.143]
[1749057358892,5.81731869,2648.5,2648.3,6.164]
[1749057360308,3.30553333,2648.4,2648.2,8.143]
[1749057360644,8.40427056,2648.3,2648.2,8.143]
[1749057360796,7.69831869,2648.3,2648.2,9.745]
[1749057364969,6.36731869,2648.3,2647.1,0.02]
[1749057365180,0.55,2647.9,2647.2,1.602]
[1749057365339,3.75398536,2647.3,2647.2,1.602]
[1749057365655,5.81731869,2647.3,2647.2,1.602]
[1749057366763,2.06333333,2647.3,2647.2,1.602]
[1749057367466,2.06333333,2647.3,2647.2,9.746]
[1749057369055,2.06333333,2647.3,2647.2,15.91]
[1749057370458,5.81731869,2647.3,2647.2,15.91]
[1749057370632,6.39905056,2647.3,2647.2,9.746]
[1749057370823,7.73605056,2647.3,2647.2,9.746]
[1749057372219,7.15431869,2647.3,2647.2,9.746]
[1749057374316,7.70431869,2647.3,2647.2,9.746]
[1749057379867,7.15431869,2647.3,2647.2,9.746]
[1749057380165,2.06333333,2647.3,2647.2,9.746]
[1749057381934,2.06333333,2647.6,2647.2,9.746]
[1749057383580,2.06333333,2647.6,2647.3,2.633791]
[1749057383766,2.06333333,2647.6,2647.5,10.0]
[1749057383946,2.06333333,2647.6,2647.2,9.746]
[1749057384266,2.06333333,2647.6,2647.3,6.164]
[1749057384467,2.06333333,2647.6,2647.4,10.0]
[1749057384665,2.06333333,2647.6,2647.3,9.582435]
[1749057384967,2.06333333,2647.6,2647.5,6.164]
[1749057389840,2.06333333,2647.6,2647.2,9.746]
[1749057390041,2.06333333,2647.6,2647.3,6.163]
[1749057390308,2.06333333,2647.6,2647.4,10.0]
[1749057393720,2.06333333,2647.6,2647.5,10.0]
[1749057393922,2.06333333,2647.6,2647.5,10.6284]
[1749057394136,2.06333333,2647.6,2647.4,11.296132]
[1749057395257,2.06333333,2648.3,2647.4,11.296132]
[1749057395438,2.06333333,2648.2,2647.4,11.296132]
[1749057395641,2.06333333,2648.2,2647.6,3.75398536]
[1749057395815,2.06333333,2648.2,2647.7,13.266935]
[1749057396137,2.06333333,2648.2,2647.9,10.0]
[1749057396339,3.75398536,2648.0,2647.8,1.601]
[1749057396749,3.75398536,2648.0,2647.9,6.163]
[1749057397071,4.45376723,2648.0,2647.9,6.163]
[1749057398120,4.45376723,2648.0,2647.8,7.763]
[1749057400569,4.45376723,2648.0,2647.8,1.601]
[1749057400736,4.45376723,2648.0,2647.8,7.763]
[1749057400937,4.45376723,2648.0,2647.8,1.601]
[1749057401252,4.46306005,2647.9,2647.8,1.601]
[1749057403115,4.46306005,2647.9,2647.8,1.6]
[1749057403321,8.21704541,2647.9,2647.8,1.6]
[1749057403532,8.21704541,2647.9,2646.2,1.62390725]
[1749057403533,0.55,2647.8,2646.5,10.0]
[1749057403737,3.75398536,2647.5,2646.7,11.406094]
[1749057404225,3.75398536,2647.5,2646.8,6.162]
[1749057404738,3.75398536,2647.5,2646.8,10.0]
[1749057404739,4.94378536,2647.5,2646.8,10.0]
[1749057404961,4.94378536,2647.5,2646.9,6.162]
[1749057405258,4.94378536,2647.5,2646.6,1.6]
[1749057405456,4.94378536,2647.5,2646.7,6.162]
[1749057405756,4.94378536,2647.5,2646.8,2.06474449]
[1749057405951,4.94378536,2647.5,2646.8,10.0]
[1749057407134,2.06333333,2647.4,2646.8,10.0]
[1749057407525,2.06333333,2647.4,2646.9,8.145]
[1749057411862,3.75398536,2647.1,2646.9,8.145]
[1749057412038,4.2564939,2647.1,2647.0,6.162]
[1749057412240,4.2564939,2647.1,2647.0,1.6]
[1749057412435,5.4530939,2647.1,2647.0,1.6]
[1749057412848,1.69910854,2647.1,2647.0,1.6]
[1749057413053,1.1966,2647.1,2647.0,1.6]
[1749057414367,4.95058536,2647.1,2647.0,1.6]
[1749057414770,7.56391869,2647.1,2647.0,1.6]
[1749057415490,0.55,2647.0,2646.9,8.145]
[1749057415786,3.86193333,2647.0,2646.9,9.745]
[1749057416087,8.37751056,2647.0,2646.9,9.745]
[1749057417199,8.37751056,2647.0,2646.9,8.145]
[1749057417496,8.37751056,2647.0,2646.9,9.745]
[1749057419590,10.88289592,2647.0,2646.1,0.02]
[1749057419810,3.75398536,2646.2,2646.1,0.02]
[1749057419960,3.75398536,2646.2,2646.1,1.621]
[1749057420154,3.75398536,2646.2,2644.8,0.15472454]
[1749057420155,5.57748536,2646.2,2644.8,0.15472454]
[1749057420421,3.75398536,2645.3,2644.8,6.163]
[1749057420616,1.1903,2645.6,2644.8,6.163]
[1749057420617,3.75398536,2645.5,2644.8,6.163]
[1749057420865,1.1903,2645.6,2644.8,6.163]
[1749057421152,2.06333333,2646.5,2645.0,16.0]
[1749057421153,4.94428536,2645.9,2645.0,16.0]
[1749057421352,1.1903,2645.9,2645.2,10.0]
[1749057421553,8.31069836,2646.1,2645.2,7.520795]
[1749057422045,8.31069836,2646.1,2645.2,5.650488]
[1749057422251,7.12039836,2645.5,2644.3,0.31400759]
[1749057422550,1.1652,2645.4,2644.3,27.903199]
[1749057422750,1.1652,2645.4,2644.5,20.444609]
[1749057423053,1.1652,2645.4,2644.5,16.0]
[1749057424016,1.1652,2645.4,2644.7,16.0]
[1749057424851,1.1652,2645.4,2644.3,17.89084582]
[1749057425047,1.1652,2645.4,2644.6,11.268589]
[1749057425259,1.1652,2645.4,2644.5,27.806504]
[1749057425441,1.2441,2645.7,2644.5,29.69718341]
[1749057425616,0.55,2645.8,2644.6,6.165]
[1749057425617,1.2441,2645.4,2644.6,6.165]
[1749057426150,1.2441,2645.4,2644.7,6.165]
[1749057426357,1.2441,2645.4,2644.3,10.0]
[1749057426659,7.12039836,2645.2,2644.2,6.13980716]
[1749057426826,1.7941,2645.4,2643.3,20.754386]
[1749057426827,1.2315,2644.5,2643.3,20.754386]
[1749057427026,1.2315,2644.5,2643.4,6.179]
[1749057427230,1.2315,2644.5,2643.5,6.179]
[1749057427428,1.2315,2644.5,2643.6,9.751]
[1749057427628,1.2315,2644.5,2643.7,11.213123]
[1749057428360,1.2315,2644.5,2643.6,9.751]